[Event "NOR-chT Eliteserien 2018-19"]
[Site "Norway"]
[Date "2019.01.12"]
[Round "5"]
[White "Stojanovic, Mihajlo"]
[Black "Ostmoe, Geir Sune Tallaksen"]
[Result "1/2-1/2"]
[ECO "A16"]
[WhiteElo "2508"]
[BlackElo "2434"]
[Annotator "ChessBase"]
[PlyCount "201"]
[EventDate "2018.11.02"]
[EventType "team-tourn"]
[EventCountry "NOR"]
[SourceTitle "playchess.com"]
[Source "ChessBase"]
[SourceQuality "1"]
[TimeControl "40/5400+30:1800+30"]

1. Nf3 {[%emt 0:00:00]} Nf6 {[%emt 0:00:00]} 2. c4 {[%emt 0:00:00]} g6 {[%emt 0:00:23]} 3. Nc3 {[%emt 0:00:00]} d5 {[%emt 0:00:12]} 4. cxd5 {[%emt 0:00:01]} Nxd5 {[%emt 0:00:05]} 5. e4 {[%emt 0:00:07]} Nxc3 {[%emt 0:01:52]} 6. dxc3 {[%emt 0:00:08]} Qxd1+ {[%emt 0:00:18]} 7. Kxd1 {[%emt 0:00:04]} f6 {[%emt 0:03:49]} 8. Be3 {[%emt 0:00:42]} e5 {[%emt 0:01:24]} 9. Kc2 {[%emt 0:00:10]} Be6 {[%emt 0:04:02]} 10. Nd2 {[%emt 0:00:11]} Nd7 {[%emt 0:04:42]} 11. Bc4 {[%emt 0:00:10]} Bxc4 {[%emt 0:20:53]} 12. Nxc4 {[%emt 0:00:07]} O-O-O {[%emt 0:00:22]} 13. b4 {[%emt 0:13:19]} h5 {[%emt 0:03:33]} 14. a4 {[%emt 0:06:56]} a6 {[%emt 0:05:14]} 15. f3 {[%emt 0:38:08]} Bh6 {[%emt 0:01:39]} 16. Bf2 {[%emt 0:05:26]} Nf8 {[%emt 0:07:41]} 17. Bh4 {[%emt 0:02:37]} Nh7 {[%emt 0:03:34]} 18. h3 {[%emt 0:06:24]} b5 {[%emt 0:08:11]} 19. axb5 {[%emt 0:00:07]} axb5 {[%emt 0:00:03]} 20. Rhd1 {[%emt 0:11:55]} Rxd1 {[%emt 0:08:50]} 21. Ra8+ {[%emt 0:00:05]} Kb7 {[%emt 0:00:05]} 22. Rxh8 {[%emt 0:00:09]} Rc1+ {[%emt 0:00:12]} 23. Kb2 {[%emt 0:01:08]} bxc4 {[%emt 0:00:08]} 24. Rxh7 {[%emt 0:00:05]} Bf4 {[%emt 0:01:10]} 25. g3 {[%emt 0:02:02]} Bd2 {[%emt 0:08:17]} 26. Bxf6 {[%emt 0:00:25]} Rxc3 {[%emt 0:00:28]} 27. Rxc7+ {[%emt 0:04:02]} Kb6 {[%emt 0:01:33]} 28. Bxe5 {[%emt 0:03:10]} Rxf3 {[%emt 0:00:32]} 29. Rxc4 {[%emt 0:00:09]} Be1 {[%emt 0:05:54]} 30. Kc2 {[%emt 0:02:19]} Kb5 {[%emt 0:03:31]} 31. Rc5+ {[%emt 0:02:09]} Kxb4 {[%emt 0:01:32]} 32. Bd6 {[%emt 0:00:23]} Rf2+ {[%emt 0:01:31]} 33. Kd1 {[%emt 0:01:50]} Rd2+ {[%emt 0:01:07]} 34. Kxe1 {[%emt 0:00:02]} Rxd6 {[%emt 0:00:04]} 35. Rg5 {[%emt 0:00:47]} Kc4 {[%emt 0:01:17]} 36. Kf2 {[%emt 0:01:42]} Kd4 {[%emt 0:01:08]} 37. e5 {[%emt 0:00:12]} Re6 {[%emt 0:00:52]} 38. Kf3 {[%emt 0:00:08]} Kd5 {[%emt 0:01:36]} 39. Ke3 {[%emt 0:01:00]} Re8 {[%emt 0:01:11]} 40. Rxg6 {[%emt 0:00:52]} Kxe5 {[%emt 0:00:25]} 41. Rg5+ {[%emt 0:07:25]} Kf6+ {[%emt 0:05:04]} 42. Kf4 {[%emt 0:00:04]} h4 {[%emt 0:09:31]} 43. g4 {[%emt 0:01:24]} Ra8 {[%emt 0:00:29]} 44. Re5 {[%emt 0:01:09]} Ra4+ {[%emt 0:11:47]} 45. Re4 {[%emt 0:00:14]} Ra5 {[%emt 0:00:29]} 46. Rb4 {[%emt 0:02:13]} Kg6 {[%emt 0:00:51]} 47. Rb6+ {[%emt 0:00:51]} Kg7 {[%emt 0:00:10]} 48. g5 {[%emt 0:01:12]} Ra4+ {[%emt 0:00:54]} 49. Kf5 {[%emt 0:00:46]} Rc4 {[%emt 0:00:42]} 50. Rb7+ {[%emt 0:01:24]} Kg8 {[%emt 0:00:16]} 51. Kg6 {[%emt 0:17:11]} Rc6+ {[%emt 0:00:06]} 52. Kh5 {[%emt 0:00:06]} Rc4 {[%emt 0:00:04]} 53. Rb1 {[%emt 0:00:17]} Kg7 {[%emt 0:00:45]} 54. Rb7+ {[%emt 0:01:24]} Kg8 {[%emt 0:00:06]} 55. Ra7 {[%emt 0:00:05]} Rb4 {[%emt 0:00:12]} 56. Kh6 {[%emt 0:01:07]} Rb6+ {[%emt 0:00:18]} 57. Kh5 {[%emt 0:00:05]} Rb4 {[%emt 0:00:03]} 58. Ra1 {[%emt 0:01:37]} Kg7 {[%emt 0:00:04]} 59. Rc1 {[%emt 0:00:08]} Ra4 {[%emt 0:00:16]} 60. Rc7+ {[%emt 0:01:04]} Kg8 {[%emt 0:00:05]} 61. Kh6 {[%emt 0:00:06]} Ra6+ {[%emt 0:00:07]} 62. Kh5 {[%emt 0:00:08]} Ra4 {[%emt 0:00:04]} 63. Rd7 {[%emt 0:00:41]} Rb4 {[%emt 0:00:05]} 64. Rd1 {[%emt 0:00:41]} Kg7 {[%emt 0:00:06]} 65. Rg1 {[%emt 0:00:19]} Rb8 {[%emt 0:04:28]} 66. Rg2 {[%emt 0:00:17]} Ra8 {[%emt 0:01:19]} 67. Rb2 {[%emt 0:00:59]} Ra4 {[%emt 0:00:11]} 68. Rb7+ {[%emt 0:00:13]} Kg8 {[%emt 0:00:23]} 69. g6 {[%emt 0:00:28]} Rc4 {[%emt 0:01:11]} 70. Kh6 {[%emt 0:00:09]} Rc8 {[%emt 0:00:04]} 71. Ra7 {[%emt 0:00:17]} Rb8 {[%emt 0:00:11]} 72. Ra5 {[%emt 0:00:34]} Rc8 {[%emt 0:00:40]} 73. Rb5 {[%emt 0:01:46]} Ra8 {[%emt 0:00:06]} 74. Kg5 {[%emt 0:00:24]} Ra4 {[%emt 0:01:19]} 75. Rc5 {[%emt 0:00:19]} Kg7 {[%emt 0:00:31]} 76. Rc7+ {[%emt 0:00:33]} Kg8 {[%emt 0:00:05]} 77. Rd7 {[%emt 0:00:36]} Rb4 {[%emt 0:00:04]} 78. Kh6 {[%emt 0:00:43]} Rb8 {[%emt 0:00:09]} 79. Rh7 {[%emt 0:00:33]} Rb3 {[%emt 0:03:36]} 80. Rg7+ {[%emt 0:00:10]} Kh8 {[%emt 0:00:15]} 81. Ra7 {[%emt 0:00:19]} Rb8 {[%emt 0:00:03]} 82. Kg5 {[%emt 0:00:42]} Rb4 {[%emt 0:00:45]} 83. Kh6 {[%emt 0:00:48]} Rb8 {[%emt 0:00:04]} 84. Kg5 {[%emt 0:00:27]} Rb4 {[%emt 0:00:05]} 85. Rh7+ {[%emt 0:00:46]} Kg8 {[%emt 0:00:04]} 86. Rc7 {[%emt 0:00:32]} Ra4 {[%emt 0:00:21]} 87. Kh6 {[%emt 0:00:08]} Ra8 {[%emt 0:00:05]} 88. Rc4 {[%emt 0:00:44]} Rb8 {[%emt 0:00:30]} 89. Rf4 {[%emt 0:00:16]} Rb3 {[%emt 0:01:22]} 90. Ra4 {[%emt 0:00:44]} Rb8 {[%emt 0:00:05]} 91. Rxh4 {[%emt 0:00:36]} Rb3 {[%emt 0:01:18]} 92. Kg5 {[%emt 0:00:06]} Rb5+ {[%emt 0:00:27]} 93. Kf6 {[%emt 0:00:07]} Rb6+ {[%emt 0:00:11]} 94. Kf5 {[%emt 0:00:09]} Rb5+ {[%emt 0:00:08]} 95. Kf6 {[%emt 0:00:15]} Rb6+ {[%emt 0:00:03]} 96. Kg5 {[%emt 0:00:13]} Rb5+ {[%emt 0:00:04]} 97. Kh6 {[%emt 0:00:49]} Rb3 {[%emt 0:00:12]} 98. Rh5 {[%emt 0:01:10]} Rg3 {[%emt 0:01:03]} 99. h4 {[%emt 0:00:21]} Rg4 {[%emt 0:00:19]} 100. g7 {[%emt 0:00:52]} Rg6+ {[%emt 0:00:07]} 101. Kxg6 {[%emt 0:00:05]} 1/2-1/2

[Event "NOR-chT Eliteserien 2018-19"]
[Site "Norway"]
[Date "2019.01.12"]
[Round "5"]
[White "Salomon, Johan"]
[Black "Nilsen, Joachim Birger"]
[Result "1-0"]
[ECO "D02"]
[WhiteElo "2494"]
[BlackElo "2397"]
[Annotator "ChessBase"]
[PlyCount "103"]
[EventDate "2018.11.02"]
[EventType "team-tourn"]
[EventCountry "NOR"]
[SourceTitle "playchess.com"]
[Source "ChessBase"]
[SourceQuality "1"]
[TimeControl "40/5400+30:1800+30"]

1. Nf3 {[%emt 0:00:00]} d5 {[%emt 0:00:00]} 2. d4 {[%emt 0:01:30]} c6 {[%emt 0:01:24]} 3. Bf4 {[%emt 0:01:17]} Nf6 {[%emt 0:06:58]} 4. e3 {[%emt 0:01:59]} g6 {[%emt 0:05:34]} 5. c4 {[%emt 0:01:38]} Bg7 {[%emt 0:00:58]} 6. Be2 {[%emt 0:02:28]} O-O {[%emt 0:00:57]} 7. O-O {[%emt 0:00:12]} c5 {[%emt 0:08:42]} 8. dxc5 {[%emt 0:02:44]} Na6 {[%emt 0:03:36]} 9. Nc3 {[%emt 0:01:47]} dxc4 {[%emt 0:02:15]} 10. c6 {[%emt 0:02:13]} bxc6 {[%emt 0:05:38]} 11. Ne5 {[%emt 0:01:57]} Qxd1 {[%emt 0:03:39]} 12. Rfxd1 {[%emt 0:01:29]} Nb4 {[%emt 0:05:24]} 13. Bxc4 {[%emt 0:06:51]} Bb7 {[%emt 0:12:51]} 14. Nd7 {[%emt 0:03:44]} Rfe8 {[%emt 0:03:33]} 15. Nc5 {[%emt 0:00:56]} Bc8 {[%emt 0:02:56]} 16. Be5 {[%emt 0:07:14]} Nbd5 {[%emt 0:05:23]} 17. h3 {[%emt 0:17:17]} Nb6 {[%emt 0:09:57]} 18. Be2 {[%emt 0:02:16]} Nfd7 {[%emt 0:02:33]} 19. Bxg7 {[%emt 0:02:03]} Kxg7 {[%emt 0:00:08]} 20. N3e4 {[%emt 0:04:10]} Rb8 {[%emt 0:02:59]} 21. Rac1 {[%emt 0:04:04]} Nd5 {[%emt 0:04:17]} 22. Rd2 {[%emt 0:01:08]} N7b6 {[%emt 0:02:19]} 23. Nb3 {[%emt 0:01:14]} Na4 {[%emt 0:03:13]} 24. Nec5 {[%emt 0:02:05]} Nxc5 {[%emt 0:00:52]} 25. Rxc5 {[%emt 0:01:28]} Rb6 {[%emt 0:04:26]} 26. Na5 {[%emt 0:06:41]} Bd7 {[%emt 0:00:45]} 27. Nc4 {[%emt 0:00:15]} Rb7 {[%emt 0:00:45]} 28. Ne5 {[%emt 0:00:50]} Be6 {[%emt 0:00:07]} 29. Nxc6 {[%emt 0:02:23]} Rc7 {[%emt 0:00:22]} 30. Bf3 {[%emt 0:01:03]} Rec8 {[%emt 0:01:43]} 31. Bxd5 {[%emt 0:00:17]} Bxd5 {[%emt 0:00:04]} 32. Rdxd5 {[%emt 0:00:11]} Rxc6 {[%emt 0:00:04]} 33. Rxc6 {[%emt 0:00:59]} Rxc6 {[%emt 0:00:02]} 34. Ra5 {[%emt 0:00:11]} Rc7 {[%emt 0:01:40]} 35. g4 {[%emt 0:01:21]} Kf6 {[%emt 0:00:34]} 36. Kg2 {[%emt 0:01:20]} Ke6 {[%emt 0:00:41]} 37. b4 {[%emt 0:01:58]} Kd7 {[%emt 0:00:33]} 38. Kf3 {[%emt 0:00:59]} Ke6 {[%emt 0:00:17]} 39. a3 {[%emt 0:00:48]} Kf6 {[%emt 0:00:40]} 40. Kf4 {[%emt 0:03:35]} Rc4+ {[%emt 0:00:30]} 41. e4 {[%emt 0:33:15]} Rc7 {[%emt 0:30:25]} 42. Ra6+ {[%emt 0:00:20]} Kg7 {[%emt 0:00:15]} 43. Ke5 {[%emt 0:04:18]} g5 {[%emt 0:00:00]} 44. Kf5 {[%emt 0:00:00]} h6 {[%emt 0:00:00]} 45. Ke5 {[%emt 0:00:00]} Rd7 {[%emt 0:00:00]} 46. f4 {[%emt 0:00:00]} gxf4 {[%emt 0:00:00]} 47. Kxf4 {[%emt 0:00:00]} f6 {[%emt 0:00:00]} 48. e5 {[%emt 0:00:00]} Rd4+ {[%emt 0:00:00]} 49. Ke3 {[%emt 0:00:00]} fxe5 {[%emt 0:00:00]} 50. Rxa7 {[%emt 0:00:00]} Kf6 {[%emt 0:00:00]} 51. b5 {[%emt 0:00:00]} Rd1 {[%emt 0:00:00]} 52. Ra4 {[%emt 0:00:00]} 1-0

[Event "NOR-chT Eliteserien 2018-19"]
[Site "Norway"]
[Date "2019.01.12"]
[Round "5"]
[White "Holm, Kristian Stuvik"]
[Black "Machlik, Endre"]
[Result "1-0"]
[ECO "B44"]
[WhiteElo "2468"]
[BlackElo "2186"]
[Annotator "ChessBase"]
[PlyCount "127"]
[EventDate "2018.11.02"]
[EventType "team-tourn"]
[EventCountry "NOR"]
[SourceTitle "playchess.com"]
[Source "ChessBase"]
[SourceQuality "1"]
[TimeControl "40/5400+30:1800+30"]

1. c4 {[%emt 0:03:36]} Nf6 {[%emt 0:00:00]} 2. Nc3 {[%emt 0:00:21]} e6 {[%emt 0:01:11]} 3. e4 {[%emt 0:00:10]} c5 {[%emt 0:00:42]} 4. Nf3 {[%emt 0:03:54]} Nc6 {[%emt 0:00:25]} 5. d4 {[%emt 0:00:37]} cxd4 {[%emt 0:00:24]} 6. Nxd4 {[%emt 0:00:03]} Bb4 {[%emt 0:00:42]} 7. Nxc6 {[%emt 0:00:45]} bxc6 {[%emt 0:01:18]} 8. Bd3 {[%emt 0:00:18]} d5 {[%emt 0:09:18]} 9. cxd5 {[%emt 0:05:42]} exd5 {[%emt 0:00:14]} 10. exd5 {[%emt 0:03:55]} Nxd5 {[%emt 0:00:34]} 11. O-O {[%emt 0:00:06]} O-O {[%emt 0:03:57]} 12. Ne4 {[%emt 0:06:08]} Bf5 {[%emt 0:04:20]} 13. Qc2 {[%emt 0:00:59]} Re8 {[%emt 0:20:03]} 14. Nf6+ {[%emt 0:07:58]} Nxf6 {[%emt 0:04:22]} 15. Bxf5 {[%emt 0:00:11]} Qd5 {[%emt 0:02:25]} 16. Be3 {[%emt 0:11:07]} Ne4 {[%emt 0:06:40]} 17. Bxe4 {[%emt 0:04:20]} Rxe4 {[%emt 0:00:25]} 18. Rfd1 {[%emt 0:00:18]} Qe6 {[%emt 0:00:57]} 19. Rac1 {[%emt 0:00:57]} Rc8 {[%emt 0:06:14]} 20. a3 {[%emt 0:01:01]} Be7 {[%emt 0:03:51]} 21. Qd3 {[%emt 0:02:03]} c5 {[%emt 0:09:40]} 22. Qd7 {[%emt 0:03:09]} a6 {[%emt 0:03:03]} 23. Qb7 {[%emt 0:02:40]} Qc6 {[%emt 0:02:49]} 24. Rd7 {[%emt 0:02:25]} Qxb7 {[%emt 0:01:10]} 25. Rxb7 {[%emt 0:00:01]} h6 {[%emt 0:04:57]} 26. g3 {[%emt 0:01:50]} c4 {[%emt 0:02:23]} 27. Rc2 {[%emt 0:03:51]} Rc6 {[%emt 0:09:42]} 28. Kg2 {[%emt 0:02:13]} Ree6 {[%emt 0:00:12]} 29. Bd4 {[%emt 0:04:01]} Re4 {[%emt 0:01:05]} 30. Bc3 {[%emt 0:00:52]} Bc5 {[%emt 0:00:19]} 31. Rd2 {[%emt 0:00:40]} Re7 {[%emt 0:00:56]} 32. Rb8+ {[%emt 0:01:27]} Kh7 {[%emt 0:00:05]} 33. h4 {[%emt 0:00:31]} Bb6 {[%emt 0:01:18]} 34. h5 {[%emt 0:01:50]} Rce6 {[%emt 0:00:42]} 35. Kf3 {[%emt 0:02:04]} Re8 {[%emt 0:00:35]} 36. Rxe8 {[%emt 0:03:05]} Rxe8 {[%emt 0:00:04]} 37. Rd6 {[%emt 0:03:34]} Re6 {[%emt 0:00:15]} 38. Rxe6 {[%emt 0:00:31]} fxe6 {[%emt 0:00:04]} 39. g4 {[%emt 0:00:05]} Kg8 {[%emt 0:00:50]} 40. Ke2 {[%emt 0:00:45]} Kf7 {[%emt 0:00:52]} 41. f4 {[%emt 0:30:58]} g6 {[%emt 0:05:10]} 42. Kf3 {[%emt 0:00:00]} gxh5 {[%emt 0:00:31]} 43. gxh5 {[%emt 0:00:00]} Bg1 {[%emt 0:00:54]} 44. Ke4 {[%emt 0:00:00]} Bf2 {[%emt 0:01:05]} 45. Bd4 {[%emt 0:00:00]} Bh4 {[%emt 0:01:52]} 46. a4 {[%emt 0:00:00]} Bd8 {[%emt 0:01:09]} 47. Bc3 {[%emt 0:00:00]} Bb6 {[%emt 0:02:13]} 48. Bd2 {[%emt 0:00:00]} Kf6 {[%emt 0:02:15]} 49. Bc3+ {[%emt 0:00:00]} Kf7 {[%emt 0:00:06]} 50. Bd4 {[%emt 0:00:00]} Bd8 {[%emt 0:01:13]} 51. Be5 {[%emt 0:00:00]} Bb6 {[%emt 0:00:54]} 52. Bc3 {[%emt 0:00:00]} Bf2 {[%emt 0:01:47]} 53. f5 {[%emt 0:00:00]} Bh4 {[%emt 0:08:48]} 54. a5 {[%emt 0:00:00]} Bf2 {[%emt 0:04:17]} 55. Bd2 {[%emt 0:00:00]} Bh4 {[%emt 0:02:04]} 56. Bxh6 {[%emt 0:00:00]} exf5+ {[%emt 0:00:51]} 57. Kxf5 {[%emt 0:00:00]} Be1 {[%emt 0:00:07]} 58. Bf4 {[%emt 0:00:00]} Bxa5 {[%emt 0:03:46]} 59. Ke4 {[%emt 0:01:56]} c3 {[%emt 0:00:38]} 60. b3 {[%emt 0:00:40]} Bd8 {[%emt 0:00:45]} 61. Kd3 {[%emt 0:01:38]} Bf6 {[%emt 0:00:15]} 62. Bc7 {[%emt 0:02:10]} Kg7 {[%emt 0:00:41]} 63. Ba5 {[%emt 0:00:13]} c2 {[%emt 0:00:24]} 64. Bd2 {[%emt 0:00:35]} 1-0

[Event "NOR-chT Eliteserien 2018-19"]
[Site "Norway"]
[Date "2019.01.12"]
[Round "5"]
[White "Hauge, Lars Oskar"]
[Black "Urkedal, Frode Olav Olsen"]
[Result "1/2-1/2"]
[ECO "C54"]
[WhiteElo "2466"]
[BlackElo "2512"]
[Annotator "ChessBase"]
[PlyCount "65"]
[EventDate "2018.11.02"]
[EventType "team-tourn"]
[EventCountry "NOR"]
[SourceTitle "playchess.com"]
[Source "ChessBase"]
[SourceQuality "1"]
[TimeControl "40/5400+30:1800+30"]

1. e4 {[%emt 0:00:00]} e5 {[%emt 0:00:00]} 2. Nf3 {[%emt 0:00:09]} Nc6 {[%emt 0:00:00]} 3. Bc4 {[%emt 0:00:32]} Bc5 {[%emt 0:00:34]} 4. O-O {[%emt 0:01:08]} Nf6 {[%emt 0:00:13]} 5. d3 {[%emt 0:00:47]} d6 {[%emt 0:00:10]} 6. c3 {[%emt 0:00:12]} h6 {[%emt 0:04:17]} 7. Bb3 {[%emt 0:02:27]} a6 {[%emt 0:03:57]} 8. Nbd2 {[%emt 0:03:13]} Ba7 {[%emt 0:00:53]} 9. Re1 {[%emt 0:04:39]} g5 {[%emt 0:00:53]} 10. Nf1 {[%emt 0:04:26]} g4 {[%emt 0:00:12]} 11. N3d2 {[%emt 0:00:53]} h5 {[%emt 0:00:09]} 12. Nc4 {[%emt 0:02:46]} h4 {[%emt 0:00:10]} 13. Be3 {[%emt 0:03:34]} Qe7 {[%emt 0:02:58]} 14. Bxa7 {[%emt 0:01:36]} Nxa7 {[%emt 0:00:07]} 15. Nce3 {[%emt 0:06:00]} Be6 {[%emt 0:02:58]} 16. Bxe6 {[%emt 0:07:48]} Qxe6 {[%emt 0:00:08]} 17. Qa4+ {[%emt 0:01:29]} Qd7 {[%emt 0:07:23]} 18. Qxd7+ {[%emt 0:00:37]} Kxd7 {[%emt 0:00:06]} 19. Nf5 {[%emt 0:00:38]} Rag8 {[%emt 0:07:36]} 20. N1e3 {[%emt 0:01:01]} Nc6 {[%emt 0:13:01]} 21. Kf1 {[%emt 0:10:25]} Ne7 {[%emt 0:08:31]} 22. Nxe7 {[%emt 0:07:34]} Kxe7 {[%emt 0:00:15]} 23. g3 {[%emt 0:00:06]} Ke6 {[%emt 0:05:43]} 24. c4 {[%emt 0:05:40]} c6 {[%emt 0:02:53]} 25. Rac1 {[%emt 0:03:53]} Rc8 {[%emt 0:06:37]} 26. Ke2 {[%emt 0:00:51]} Rcd8 {[%emt 0:11:01]} 27. Nf5 {[%emt 0:01:31]} hxg3 {[%emt 0:00:50]} 28. hxg3 {[%emt 0:00:49]} d5 {[%emt 0:04:45]} 29. Ke3 {[%emt 0:03:53]} d4+ {[%emt 0:05:45]} 30. Ke2 {[%emt 0:00:40]} Rh2 {[%emt 0:03:48]} 31. Rh1 {[%emt 0:01:31]} Rdh8 {[%emt 0:01:06]} 32. Rxh2 {[%emt 0:00:09]} Rxh2 {[%emt 0:00:05]} 33. c5 {[%emt 0:02:16]} 1/2-1/2

[Event "NOR-chT Eliteserien 2018-19"]
[Site "Norway"]
[Date "2019.01.12"]
[Round "5"]
[White "Haldorsen, Benjamin"]
[Black "Blomqvist, Erik"]
[Result "1/2-1/2"]
[ECO "B46"]
[WhiteElo "2454"]
[BlackElo "2491"]
[Annotator "ChessBase"]
[PlyCount "153"]
[EventDate "2018.11.02"]
[EventType "team-tourn"]
[EventCountry "NOR"]
[SourceTitle "playchess.com"]
[Source "ChessBase"]
[SourceQuality "1"]
[TimeControl "40/5400+30:1800+30"]

1. e4 {[%emt 0:00:00]} c5 {[%emt 0:00:00]} 2. Nf3 {[%emt 0:00:00]} e6 {[%emt 0:00:14]} 3. d4 {[%emt 0:00:52]} cxd4 {[%emt 0:00:09]} 4. Nxd4 {[%emt 0:00:02]} Nc6 {[%emt 0:00:11]} 5. Nc3 {[%emt 0:00:09]} a6 {[%emt 0:00:06]} 6. Nxc6 {[%emt 0:00:18]} bxc6 {[%emt 0:00:07]} 7. Bd3 {[%emt 0:00:03]} d5 {[%emt 0:00:18]} 8. O-O {[%emt 0:00:08]} Nf6 {[%emt 0:00:08]} 9. Qf3 {[%emt 0:00:04]} Be7 {[%emt 0:02:05]} 10. Qg3 {[%emt 0:00:23]} O-O {[%emt 0:00:09]} 11. Bh6 {[%emt 0:00:07]} Ne8 {[%emt 0:00:12]} 12. Bf4 {[%emt 0:00:31]} g6 {[%emt 0:01:51]} 13. Rad1 {[%emt 0:08:57]} Nf6 {[%emt 0:09:36]} 14. Be2 {[%emt 0:05:15]} a5 {[%emt 0:21:06]} 15. Rfe1 {[%emt 0:19:11]} Ba6 {[%emt 0:14:51]} 16. Bf3 {[%emt 0:03:49]} Rc8 {[%emt 0:10:00]} 17. h4 {[%emt 0:14:25]} Nd7 {[%emt 0:21:54]} 18. h5 {[%emt 0:05:35]} e5 {[%emt 0:09:54]} 19. Bxe5 {[%emt 0:14:46]} Bh4 {[%emt 0:02:19]} 20. Qh2 {[%emt 0:01:38]} Nxe5 {[%emt 0:00:07]} 21. Qxe5 {[%emt 0:00:07]} Qb6 {[%emt 0:02:38]} 22. Qd4 {[%emt 0:09:28]} Qxd4 {[%emt 0:00:13]} 23. Rxd4 {[%emt 0:00:02]} Rfe8 {[%emt 0:00:18]} 24. Rdd1 {[%emt 0:00:28]} Rb8 {[%emt 0:02:59]} 25. exd5 {[%emt 0:01:21]} Rxe1+ {[%emt 0:00:10]} 26. Rxe1 {[%emt 0:00:10]} Rxb2 {[%emt 0:00:29]} 27. Re4 {[%emt 0:09:20]} Rxc2 {[%emt 0:00:37]} 28. Rxh4 {[%emt 0:00:29]} Rxc3 {[%emt 0:00:08]} 29. dxc6 {[%emt 0:00:09]} Bb5 {[%emt 0:01:07]} 30. Rd4 {[%emt 0:00:13]} Kg7 {[%emt 0:00:20]} 31. hxg6 {[%emt 0:01:03]} hxg6 {[%emt 0:00:05]} 32. Rd7 {[%emt 0:02:07]} Rc2 {[%emt 0:00:59]} 33. Bd5 {[%emt 0:00:49]} Bxc6 {[%emt 0:00:38]} 34. Rxf7+ {[%emt 0:01:28]} Kh6 {[%emt 0:00:02]} 35. Rc7 {[%emt 0:01:52]} Ba4 {[%emt 0:00:04]} 36. Rxc2 {[%emt 0:01:26]} Bxc2 {[%emt 0:00:04]} 37. f3 {[%emt 0:00:59]} Kg5 {[%emt 0:00:22]} 38. Kf2 {[%emt 0:00:20]} Kf4 {[%emt 0:00:04]} 39. Bb3 {[%emt 0:00:23]} Bb1 {[%emt 0:00:21]} 40. a3 {[%emt 0:00:57]} g5 {[%emt 0:00:11]} 41. g3+ {[%emt 0:30:28]} Ke5 {[%emt 0:31:12]} 42. Ke3 {[%emt 0:00:00]} Bf5 {[%emt 0:00:00]} 43. f4+ {[%emt 0:00:00]} gxf4+ {[%emt 0:00:00]} 44. gxf4+ {[%emt 0:00:00]} Kd6 {[%emt 0:00:00]} 45. Kd4 {[%emt 0:00:00]} Bg6 {[%emt 0:00:00]} 46. Bc4 {[%emt 0:00:00]} Bc2 {[%emt 0:00:00]} 47. Bd3 {[%emt 0:00:00]} Bb3 {[%emt 0:00:00]} 48. Ke4 {[%emt 0:00:00]} Ke6 {[%emt 0:00:00]} 49. Kd4 {[%emt 0:00:00]} Kd6 {[%emt 0:00:00]} 50. f5 {[%emt 0:00:00]} a4 {[%emt 0:00:00]} 51. Ke4 {[%emt 0:00:00]} Bd1 {[%emt 0:00:00]} 52. Bb5 {[%emt 0:00:00]} Bb3 {[%emt 0:00:00]} 53. Bd3 {[%emt 0:00:00]} Bd1 {[%emt 0:00:00]} 54. Kf4 {[%emt 0:00:00]} Bb3 {[%emt 0:00:00]} 55. Kg5 {[%emt 0:00:00]} Ke7 {[%emt 0:00:00]} 56. Kg6 {[%emt 0:00:00]} Kf8 {[%emt 0:00:00]} 57. Kf6 {[%emt 0:00:00]} Bd1 {[%emt 0:00:00]} 58. Ke6 {[%emt 0:00:00]} Bb3+ {[%emt 0:00:00]} 59. Kf6 {[%emt 0:00:00]} Bd1 {[%emt 0:00:00]} 60. Bc4 {[%emt 0:00:00]} Bb3 {[%emt 0:00:00]} 61. Be6 {[%emt 0:00:00]} Ke8 {[%emt 0:00:00]} 62. Bc8 {[%emt 0:00:00]} Kf8 {[%emt 0:00:00]} 63. Ba6 {[%emt 0:00:00]} Bc2 {[%emt 0:00:00]} 64. Ke5 {[%emt 0:01:19]} Bb3 {[%emt 0:03:28]} 65. Be2 {[%emt 0:01:03]} Bc2 {[%emt 0:01:30]} 66. Bc4 {[%emt 0:00:27]} Bb3 {[%emt 0:00:43]} 67. Kd4 {[%emt 0:00:51]} Bc2 {[%emt 0:02:24]} 68. f6 {[%emt 0:01:25]} Bd1 {[%emt 0:01:30]} 69. Kc3 {[%emt 0:00:28]} Ke8 {[%emt 0:01:26]} 70. Kb4 {[%emt 0:01:28]} Kf8 {[%emt 0:01:11]} 71. Bb5 {[%emt 0:02:18]} Kf7 {[%emt 0:00:04]} 72. Bxa4 {[%emt 0:00:05]} Be2 {[%emt 0:00:23]} 73. Kc5 {[%emt 0:01:31]} Kxf6 {[%emt 0:00:30]} 74. Kd6 {[%emt 0:00:22]} Bd3 {[%emt 0:01:57]} 75. Bb3 {[%emt 0:00:17]} Bb5 {[%emt 0:00:16]} 76. Be6 {[%emt 0:00:40]} Ba4 {[%emt 0:00:16]} 77. Bd7 {[%emt 0:00:18] Ke5+ [%emt 00:00:04]} 1/2-1/2